Cogmind - Beta 10.1 *** ADVENTURER MODE // 2020.10.11 @ 08:24:48 Player: spacekitteh Result: Self-destructed Performance ------------- Evolutions (1) 500 Regions Visited (3) 600 Robots Destroyed (40) 200 Value Destroyed (972) 972 Prototype IDs (5) 100 Alien Tech Used (0) 0 Bonus (0) 0 TOTAL SCORE: 2372 Bonus ------- None Cogmind --------- Core Integrity 321/400 Matter 300/300 Energy 100/100 System Corruption 0% Temperature Cool (0) Movement Treading (160) Location -9/Mines Parts ------- > --- POWER (1) -------- (None) > --- PROPULSION (2) --- Light Treads > --- UTILITY (4) ------ Seismic Analyzer Field Recycling Unit > --- WEAPON (2) ------- Hammer > --- INVENTORY (4) ---- Large Battery (300) Visual Processing Unit Sensor Array Peak State ------------ > --- POWER ------------ Light Nuclear Core > --- PROPULSION ------- Light Treads Light Treads > --- UTILITY ---------- Improved Terrain Scanner Seismic Analyzer Shield Generator Field Recycling Unit > --- WEAPON ----------- Light Cannon Hammer > --- INVENTORY -------- Large Battery Sensor Array Particle Cannon [Rating: 14] Favorites ----------- Power Light Nuclear Core Engine Light Ion Engine Power Core Light Nuclear Core Propulsion Light Treads Treads Light Treads Leg Aluminum Leg Hover Unit Backup Propulsion I Utility Seismic Analyzer Device Improved Terrain Scanner Processor Seismic Analyzer Weapon Hammer Energy Gun EM Pulse Gun Energy Cannon Particle Cannon Ballistic Gun Light Assault Rifle Ballistic Cannon Light Cannon Special Weapon Mining Laser Impact Weapon Hammer Build | -11 -10 -9 -9 ------- Run | Scr Mat Mat Min Slots Evolved 2 | . . 2 . Power . | . . . . Propulsion . | . . . . Utility 2 | . . 2 . Weapon . | . . . . Parts Attached 25 | 7 13 5 . Power 3 | 1 2 . . Engine 2 | 1 1 . . Core 1 | . 1 . . Reactor . | . . . . Propulsion 10 | 2 6 2 . Treads 3 | . 2 1 . Leg 7 | 2 4 1 . Wheel . | . . . . Hover . | . . . . Flight . | . . . . Utility 4 | 2 . 2 . Device 3 | 1 . 2 . Storage . | . . . . Processor 1 | 1 . . . Hackware . | . . . . Protection . | . . . . Artifact . | . . . . Weapon 8 | 2 5 1 . Energy Gun 3 | 2 1 . . Energy Cannon 1 | . . 1 . Ballistic Gun 1 | . 1 . . Ballistic Cannon 1 | . 1 . . Launcher . | . . . . Special Weapon 1 | . 1 . . Impact Weapon 1 | . 1 . . Slashing Weapon . | . . . . Piercing Weapon . | . . . . Special Melee Weapon . | . . . . Unidentified Prototypes . | . . . . Parts Lost 9 | . 2 7 . Power 2 | . 1 1 . Propulsion 2 | . . 2 . Utility 2 | . . 2 . Weapon 3 | . 1 2 . Highest Loss Streak 4 | . 2 4 . Average Slot Usage (%) 98 | . 99 92 . Engine 3 | . 4 . . Core 9 | . 9 10 . Treads 19 | . 20 13 . Leg 6 | . 7 5 . Device 16 | . 14 30 . Processor 13 | . 14 11 . Energy Gun 4 | . 5 . . Ballistic Gun 3 | . 3 . . Ballistic Cannon 8 | . 8 9 . Impact Weapon 9 | . 8 11 . Naked Turns . | . . . . Heaviest Build 21 | 7 11 21 . Greatest Support 40 | 20 40 40 . Greatest Overweight (x) 2 | . 1 2 . Average Overweight (x) . | . . . . Largest Inventory Capacity 4 | 4 4 4 . Average Capacity 4 | 4 4 4 . Most Carried 4 | 4 4 4 . Average Carried 3 | 1 3 3 . Final Capacity 4 | 4 4 4 4 Final Carried 4 | 2 4 3 3 Class Distribution -------------------- 83% | Mutant 16% | Scavenger-Mutant Dominant Class ---------------- Mutant | -10/Materials Mutant | -9/Materials Mutant | -9/Mines Resources | -11 -10 -9 -9 ----------- Run | Scr Mat Mat Min Matter Collected 728 | 250 348 130 . Remotely . | . . . . Salvage Created 1085 | 116 626 343 . Parts 72 | 9 44 19 . Haulers Intercepted . | . . . . Recyclers Shooed . | . . . . Parts Field Recycled . | . . . . Retrieved Matter . | . . . . Parts Self-Destructed . | . . . . Prevented . | . . . . Kills | -11 -10 -9 -9 ------- Run | Scr Mat Mat Min Combat Hostiles Destroyed 31 | 1 22 8 . Guns 9 | 1 8 . . Cannons 21 | . 13 8 . Classes Destroyed 8 | 2 4 2 . Worker 2 | . 1 1 . Builder 1 | . 1 . . Tunneler 3 | 3 . . . Watcher 3 | . 2 1 . Swarmer 9 | . 9 . . Grunt 19 | 1 13 5 . Duelist 1 | . . 1 . Sentry 2 | . . 2 . Best Kill Streak 6 | 2 6 4 . Combat Bots Only 6 | 1 6 3 . Max Kills in Single Turn 1 | 1 1 1 . Gunslinging . | . . . . Exploded . | . . . . Melee . | . . . . Uniques/NPCs Destroyed . | . . . . Combat | -11 -10 -9 -9 -------- Run | Scr Mat Mat Min Damage Taken 1174 | 25 651 498 . Core 161 | 9 73 79 . Absorbed by Shields 102 | . . 102 . Core Remaining (%) 81 | 96 67 . . Volleys Fired 122 | 7 82 33 . Largest 2 | 2 2 1 . Hottest 140 | 80 140 68 . Shots Fired 149 | 14 102 33 . Gun 69 | 14 55 . . Cannon 79 | . 46 33 . Launcher . | . . . . Special 1 | . 1 . . Kinetic 90 | . 65 25 . Thermal 30 | 7 15 8 . Explosive . | . . . . Electromagnetic 29 | 7 22 . . Robot Hit Streak 32 | 6 16 32 . Robot Miss Streak 3 | 1 3 1 . Penetration Max . | . . . . Secondary Targets . | . . . . Shots Hit Robots 125 | 8 78 39 . Core Hits 47 | 5 30 12 . Critical Hits 1 | . 1 . . Critical Kills 1 | . 1 . . Critical Parts Destroyed . | . . . . Melee Attacks 9 | . 1 8 . Impact 9 | . 1 8 . Slashing . | . . . . Piercing . | . . . . Sneak Attacks 2 | . 1 1 . Combat Hostiles . | . . . . Follow-up Attacks . | . . . . Damage Inflicted 1897 | 106 1119 672 . Guns 550 | 106 444 . . Cannons 1141 | . 614 527 . Explosions . | . . . . Melee 206 | . 61 145 . Ramming . | . . . . Kinetic 1090 | . 708 382 . Thermal 284 | 12 127 145 . Explosive . | . . . . Electromagnetic 317 | 94 223 . . Impact 206 | . 61 145 . Slashing . | . . . . Piercing . | . . . . Highest Corruption . | . . . . Average Corruption . | . . . . Corruption Purged . | . . . . Overload Shots . | . . . . Overflow Damage 13 | . 13 . . Projectiles 13 | . 13 . . Explosions . | . . . . Melee . | . . . . Knockbacks 11 | . 4 7 . Impact 1 | . . 1 . Kinetic 10 | . 4 6 . Secondary . | . . . . Self-Inflicted Damage . | . . . . Shots . | . . . . Rammed . | . . . . Targets Rammed . | . . . . Kicked . | . . . . Crushed . | . . . . Highest Temperature 321 | 54 127 321 . Average Temperature 49 | 21 34 77 . Received Heat Transfer 560 | 18 222 320 . Siege Activations . | . . . . Robots Corrupted 1 | . 1 . . Combat Hostiles 1 | . 1 . . Parts Fried . | . . . . Impact Corruptions . | . . . . Robots Melted . | . . . . Combat Hostiles . | . . . . Parts Melted . | . . . . Heat Transferred 654 | 25 370 259 . Parts Sabotaged . | . . . . Parts Stolen . | . . . . Parts Stripped . | . . . . Power Chain Reactions . | . . . . Missiles Intercepted . | . . . . Alert | -11 -10 -9 -9 ------- Run | Scr Mat Mat Min Peak Influence 234 | 35 199 234 . Initial 63 | . . 2 63 Average 62 | 18 66 105 . Maximum Alert Level 1 | . . 1 . Low Security (%) 98 | 100 100 85 . Level 1 1 | . . 14 . Level 2 . | . . . . Level 3 . | . . . . Level 4 . | . . . . Level 5 . | . . . . High Security . | . . . . Max Security . | . . . . Squads Dispatched 11 | . 8 3 . Investigation 10 | . 8 2 . Extermination . | . . . . Reinforcement 1 | . . 1 . Assault . | . . . . Garrison . | . . . . Intercept . | . . . . Construction Impeded . | . . . . Haulers Reinforced . | . . . . Stealth | -11 -10 -9 -9 --------- Run | Scr Mat Mat Min Distress Signals 4 | . 3 1 . Communications Jammed . | . . . . Distress Signals . | . . . . Times Spotted 48 | 1 33 14 . Peak Tracking Total 4 | 1 4 4 . Tactical Retreats 3 | . 3 . . Traps | -11 -10 -9 -9 ------- Run | Scr Mat Mat Min Traps Triggered 2 | . 1 1 . Indirectly . | . . . . Trap Hack Attempts . | . . . . Triggered . | . . . . Disarmed 6 | . 6 . . Reprogrammed . | . . . . Reused . | . . . . Traps Extracted . | . . . . Installed . | . . . . Triggered . | . . . . Machines | -11 -10 -9 -9 ---------- Run | Scr Mat Mat Min Machines Disabled 2 | . 1 1 . Max in Single Turn 1 | . 1 1 . Machines Sabotaged . | . . . . Garrisons Compromised . | . . . . Overloaded Fab Kills . | . . . . Fab Network Shutdowns . | . . . . Hacking | -11 -10 -9 -9 --------- Run | Scr Mat Mat Min Machines Accessed 13 | . 11 2 . Terminals 9 | . 8 1 . Fabricators . | . . . . Repair Stations 1 | . 1 . . Recycling Units 2 | . 2 . . Scanalyzers 1 | . . 1 . Garrison Access . | . . . . Total Hacks 62 | . 51 11 . Successful 43 | . 38 5 . Failed 19 | . 13 6 . Catastrophic . | . . . . Database Lockouts . | . . . . Manual . | . . . . Terminals 40 | . 33 7 . Fabricators . | . . . . Repair Stations 8 | . 8 . . Recycling Units 10 | . 10 . . Scanalyzers 4 | . . 4 . Garrison Access . | . . . . Terminal Hacks 29 | . 25 4 . Record 9 | . 6 3 . Prototype ID Bank 3 | . 3 . . Emergency Access Points 3 | . 3 . . Alert Level 2 | . 2 . . Unreport Threat 1 | . 1 . . Disarm Traps 1 | . 1 . . Dispatch Records 2 | . 2 . . Transport Status 2 | . 2 . . Recall Investigation 1 | . 1 . . Hauler Manifests 3 | . 3 . . Registered Components 1 | . 1 . . Zone Layout 1 | . . 1 . Fabricator Hacks . | . . . . Repair Station Hacks 6 | . 6 . . Scan Component 3 | . 3 . . Repair 2 | . 2 . . Refit 1 | . 1 . . Recycling Unit Hacks 7 | . 7 . . Recycle Component 1 | . 1 . . Process 1 | . 1 . . Report Inventory 3 | . 3 . . Retrieve Components 2 | . 2 . . Scanalyzer 1 | . . 1 . Insert Component 1 | . . 1 . Garrison Access Hacks . | . . . . Unauthorized Hacks . | . . . . Terminals . | . . . . Fabricators . | . . . . Repair Stations . | . . . . Recycling Units . | . . . . Scanalyzers . | . . . . Garrison Access . | . . . . Data Cores Recovered . | . . . . Used . | . . . . Hacking Detections 10 | . 8 2 . Full Trace Events 10 | . 8 2 . Feedback Events . | . . . . Feedback Blocked . | . . . . Robot Schematics Acquired . | . . . . Robots Built . | . . . . Matter . | . . . . Time . | . . . . Total Robot Build Rating . | . . . . Part Schematics Acquired . | . . . . Parts Built . | . . . . Matter . | . . . . Time . | . . . . Total Part Build Rating . | . . . . Parts Repaired 2 | . 2 . . Time 52 | . 52 . . Parts Recycled 1 | . 1 . . Recycled Matter 22 | . 22 . . Retrieved Matter . | . . . . Retrieved Components 5 | . 5 . . Parts Scanalyzed 1 | . . 1 . Part Schematics Acquired . | . . . . Parts Damaged . | . . . . Bothacking | -11 -10 -9 -9 ------------ Run | Scr Mat Mat Min Used RIF Installer . | . . . . Robots Hacked . | . . . . Non-combat . | . . . . Combat . | . . . . Robot Hacks Applied . | . . . . Relay Couplers Released . | . . . . Robots Rewired . | . . . . Allies Hacked . | . . . . Hacks Repelled . | . . . . Allies | -11 -10 -9 -9 -------- Run | Scr Mat Mat Min Total Allies . | . . . . Largest Group . | . . . . Highest-Rated Group . | . . . . Highest-Rated Ally . | . . . . Total Orders . | . . . . Ally Attacks . | . . . . Total Damage . | . . . . Kills . | . . . . Allies Corrupted . | . . . . Allies Melted . | . . . . Intel | -11 -10 -9 -9 ------- Run | Scr Mat Mat Min Robot Analysis Total . | . . . . Derelict Logs Recovered . | . . . . Drone Launches . | . . . . Drone Recoveries . | . . . . Exploration | -11 -10 -9 -9 ------------- Run | Scr Mat Mat Min Turns Passed 2599 | 475 1797 327 . Spaces Moved 1280 | 168 978 134 . Core 22 | 22 . . . Treads 901 | . 799 102 . Legs 353 | 146 175 32 . Wheels . | . . . . Hover 4 | . 4 . . Flight . | . . . . Fastest Speed 50 | 50 120 160 . Average Speed 149 | 110 152 172 . Slowest Speed 180 | 120 160 180 . Overloaded Moves . | . . . . Propulsion Burnouts . | . . . . Robots Hopped . | . . . . Cave-ins Triggered . | . . . . Exploration Rate (%) 32 | 8 93 22 5 Regions Visited 3 Branch Regions 1 Pre-discovered Areas . | . . . . Known Exits Taken . | . . . . Unknown Exits Taken 3 | 1 1 1 . Scrap Searched . | . . . . Spaces Dug 1 | . 1 . . Terrain Destroyed 1 | . 1 . . Melee . | . . . . Projectile 1 | . 1 . . AOE . | . . . . Terrain Rammed . | . . . . Walls Destroyed . | . . . . Machines Disabled . | . . . . Actions | -11 -10 -9 -9 --------- Run | Scr Mat Mat Min Total 1809 | 443 1181 185 . Wait 338 | 253 83 2 . Move 1277 | 167 977 133 . Hop . | . . . . Pick Up 25 | 9 13 3 . Fast Attach 3 | . 3 . . Attach 14 | 7 3 4 . Detach . | . . . . Swap 8 | . 7 1 . Drop 13 | . 12 1 . Fire 122 | 7 82 33 . Melee 9 | . 1 8 . Ram . | . . . . Kick . | . . . . Crush . | . . . . Escape Stasis . | . . . . Rewire . | . . . . Trap . | . . . . Miscellaneous . | . . . . Route ------- -11/Scrapyard -10/Materials (discovered 5 exits: *Mat x3 / [*Min x2]) -9/Materials -9/Mines History --------- Turn | Location | Event 2 | -11/Scrapyard | Met Revision 17 77 | -11/Scrapyard | Discovered new exit (range 8) 476 | -11/Scrapyard | Entered Materials 477 | -10/Materials | Build established: Mutant 586 | -10/Materials | Discovered new exit (range 12) 691 | -10/Materials | Discovered new exit (range 11) 767 | -10/Materials | Repaired Aluminum Leg 772 | -10/Materials | Discovered new exit (range 16) 793 | -10/Materials | Repaired Aluminum Leg 1405 | -10/Materials | Discovered new exit (range 8) 2240 | -10/Materials | Discovered new exit (range 16) 2273 | -10/Materials | Entered another Materials area 2273 | -9/Materials | Evolved 2 slots: Utility x2 2487 | -9/Materials | Discovered new exit (range 14) 2600 | -9/Materials | Entered Mines 2600 | -9/Mines | Self-destructed Last Messages --------------- 02542_ K-01 Serf collects debris. 02542_ K-01 Serf destroyed. 02543_ Acquired 4 matter. 02550_ Lgt. Cannon destroyed. 02555_ Y-45 Defender destroyed. 02557_ Triggered Alarm Trap. 02557_ An alarm sounds. 02557_ ALERT: Alarm triggered, dispatching investigation squad. 02564_ U-05 Engineer lays Concrete. To regain energy, simply wait via the mouse wheel '.', or KP5. Also make sure your per-turn energy generation is a net positive, and consider deactivating power-draining parts if not. 02581_ R-06 Scavenger collects Heat Sink. 02585_ R-06 Scavenger collects Beam Rifle. 02587_ Lgt. Nuclear Core destroyed. 02591_ Particle Cannon destroyed. 02594_ Shield Generator destroyed. 02595_ R-06 Scavenger collects Sml. Matter Pod. 02598_ Aluminum Leg destroyed. LOCATION=UNKNOWN GOAL=ESCAPE Map ----- +----------------------------------------------------+ | | | | | | | | | | | | | | | | | | | | | | | | | | | | | | | | | ???????????????????????????????????? | | ???????????????????????????????????? | | ???????????????###?????????????????? | | ??????????????# ###???????????????? | | ?????###????## ????????????????? | | ?????# #?## ?????????????????? | | ?????# ## #??????????????????? | | ?????# #???????????????????? | | ??????# ##??????????????????? | | ????????# @ #??????????????????? | | ????????## ????????????? | | ?????????# ###### #??????????? | | ?????????# ##?????????????????? | | ?????????## ####??????????????????? | | ??????????####?????????????????????? | | ???????????????????????????????????? | | ???????????????????????????????????? | | ???????????????????????????????????? | | ???????????????????????????????????? | | ???????????????????????????????????? | | ???????????????????????????????????? | | ???????????????????????????????????? | | ???????????????????????????????????? | | ???????????????????????????????????? | | ???????????????????????????????????? | | ???????????????????????????????????? | | ???????????????????????????????????? | | ???????????????????????????????????? | | ???????????????????????????????????? | | ???????????????????????????????????? | | ???????????????????????????????????? | | ???????????????????????????????????? | | ???????????????????????????????????? | | ???????????????????????????????????? | +----------------------------------------------------+ Best States ------------- Heat Dissipation 28 Energy Generation 14 Energy Capacity 250 Matter Stores 300 Matter Capacity 300 Sight Range 16 Terrain Scan Range 16 Terrain Scan Density 60 Resistance: KI 20 Resistance: TH 20 Resistance: EX 20 Resistance: EM 20 Resistance: I 20 Resistance: S 20 Resistance: P 20 Evasion (%) 50 Recoil Reduction 2 Offensive Hacking 10 Item Schematics ----------------- None Robot Schematics ------------------ None Fabricated ------------ Nothing Alien Tech Used ----------------- None Achievements -------------- Novice Programmer Part-time Mechanic Power Corrupts Uninvited Guest Challenges ------------ None Game ------ Seed GyrokineticLargeNeutralizer Manual? 0 Play Time 00:40:49 Cumulative 2.8 hours Start 2020.10.10 @ 20:00:50 End 2020.10.11 @ 08:24:48 Sessions 3 Manual Loads 0 Difficulty Adventurer Special Mode None Game No. 2 Rogue 0 Adventurer 2 Explorer 0 Win Type - Total 0 Types 0/0/0/0/0/0/0/0/0 Lore% 1 Gallery% 4 Achievement% 4 Wizard Run 0 Options --------- ASCII 0 Keyboard 0 Movement Mouse Keybinds 0 Fullscreen 1 Font 24/Smallcaps Map View 183x50 Tactical HUD 1 Map Filters NONE Filters NONE Steam 1 RUN: bf690a33-71db-4b6a-96d3-f4da1f051d03